Cogmind - Beta 13 *** ADVENTURER MODE // 2024.06.22 @ 04:57:13 Player: KURIIRI Result: Destroyed by D-53 Grenadier with Mini Grenade Launcher Performance ------------- Evolutions (0) 0 Regions Visited (4) 800 Robots Destroyed (18) 90 Value Destroyed (378) 378 Prototype IDs (2) 40 Alien Tech Used (0) 0 Bonus (275) 275 TOTAL SCORE: 1583 Bonus ------- Aligned with FarCom 300 Friendly Fire -25 Cogmind --------- Core Integrity 0/250 Matter 233/300 Energy 97/100 System Corruption 1% Temperature Cool (0) Movement Rolling (115) Ox1 Location -9/Mines Parts ------- > --- POWER (1) -------- (None) > --- PROPULSION (2) --- Compact Wheel > --- UTILITY (2) ------ Large Storage Unit Signal Interpreter > --- WEAPON (2) ------- Longsword +1 > --- INVENTORY (15) --- Light Ion Engine Light Treads Light Treads Compact Wheel Improved Heat Sink High-capacity Matter Pod (109) Medium Laser Medium Laser Medium Laser Assault Rifle Peak State ------------ > --- POWER ------------ Ion Engine > --- PROPULSION ------- Compact Wheel Compact Wheel > --- UTILITY ---------- Large Storage Unit Signal Interpreter > --- WEAPON ----------- Rocket Launcher Longsword +1 > --- INVENTORY -------- Light Ion Engine Light Treads Light Treads Compact Wheel Compact Wheel High-capacity Matter Pod Medium Laser Medium Laser Medium Laser Assault Rifle [Rating: 16] Favorites ----------- Power Ion Engine Engine Ion Engine Propulsion Compact Wheel Wheel Compact Wheel Utility Signal Interpreter Storage Large Storage Unit Processor Signal Interpreter Weapon Medium Laser Energy Gun Medium Laser Ballistic Gun Assault Rifle Ballistic Cannon Light Cannon Launcher Rocket Launcher Slashing Weapon Longsword +1 Build | -11 -10 -10 -10 -9 ------- Run | Yrd Mat Min Exi Min Slots Evolved . | . . . . . Power . | . . . . . Propulsion . | . . . . . Utility . | . . . . . Weapon . | . . . . . Parts Attached 21 | 6 12 . 1 2 Power 4 | . 4 . . . Engine 4 | . 4 . . . Core . | . . . . . Reactor . | . . . . . Propulsion 4 | 2 1 . . 1 Treads . | . . . . . Leg . | . . . . . Wheel 4 | 2 1 . . 1 Hover . | . . . . . Flight . | . . . . . Utility 3 | 1 2 . . . Device . | . . . . . Storage 2 | 1 1 . . . Processor 1 | . 1 . . . Hackware . | . . . . . Protection . | . . . . . Artifact . | . . . . . Weapon 10 | 3 5 . 1 1 Energy Gun 3 | 1 2 . . . Energy Cannon . | . . . . . Ballistic Gun 4 | 2 2 . . . Ballistic Cannon 1 | . 1 . . . Launcher 1 | . . . . 1 Special Weapon . | . . . . . Impact Weapon . | . . . . . Slashing Weapon 1 | . . . 1 . Piercing Weapon . | . . . . . Special Melee Weapon . | . . . . . Unidentified Prototypes 2 | . 1 . 1 . Parts Lost 5 | . 1 . . 4 Power 2 | . 1 . . 1 Propulsion 2 | . . . . 2 Utility . | . . . . . Weapon 1 | . . . . 1 Highest Loss Streak 4 | . 1 . . 4 To Critical Strikes . | . . . . . Average Slot Usage (%) 95 | . 92 100 100 92 Engine 12 | . 12 14 14 12 Wheel 27 | . 28 28 28 24 Storage 14 | . 14 14 14 14 Processor 11 | . 9 14 14 14 Energy Gun 12 | . 12 14 14 . Ballistic Gun 9 | . 11 14 6 . Ballistic Cannon 1 | . 2 . . . Slashing Weapon 3 | . . . 7 14 Naked Turns . | . . . . . Heaviest Build 32 | 8 29 29 30 32 Greatest Support 32 | 32 32 32 32 32 Greatest Overweight (x) 1 | . . . . 1 Average Overweight (x) . | . . . . . Largest Inventory Capacity 15 | 8 15 15 15 15 Average Capacity 11 | 6 8 15 15 15 Most Carried 11 | 6 8 9 10 11 Average Carried 8 | 4 7 8 9 10 Final Capacity 15 | 8 15 15 15 15 Final Carried 10 | 5 8 9 10 10 Class Distribution -------------------- 100% | Mutant Dominant Class ---------------- Mutant | -10/Materials Mutant | -10/Mines Mutant | -10/Exiles Mutant | -9/Mines Resources | -11 -10 -10 -10 -9 ----------- Run | Yrd Mat Min Exi Min Matter Collected 678 | 234 315 . . 129 Remotely . | . . . . . Salvage Created 591 | 98 440 . . 53 Parts 35 | 2 29 . . 4 Haulers Intercepted . | . . . . . Recyclers Shooed 2 | . 2 . . . Parts Field Recycled . | . . . . . Retrieved Matter . | . . . . . Parts Self-Destructed . | . . . . . Prevented . | . . . . . Kills | -11 -10 -10 -10 -9 ------- Run | Yrd Mat Min Exi Min Combat Hostiles Destroyed 28 | . 10 . . 18 Melee 1 | . . . . 1 Guns 9 | . 9 . . . Cannons 1 | . 1 . . . AOE 17 | . . . . 17 Classes Destroyed 5 | 1 3 . . 1 Recycler 2 | 1 1 . . . Watcher 2 | . 2 . . . Swarmer 7 | . 3 . . 4 Grunt 7 | . 7 . . . Assembled 14 | . . . . 14 Best Kill Streak 14 | 1 4 . . 14 Combat Bots Only 14 | . 3 . . 14 Max Kills in Single Turn 5 | 1 1 . . 5 Gunslinging . | . . . . . Exploded 5 | . . . . 5 Melee 1 | . . . . 1 Uniques/NPCs Destroyed . | . . . . . Combat | -11 -10 -10 -10 -9 -------- Run | Yrd Mat Min Exi Min Hostile Shots Fired 84 | . 54 . . 30 Missed 24 | . 13 . . 11 Damage Taken 813 | . 384 . . 429 Core 257 | . 78 . . 179 Absorbed by Shields . | . . . . . Ignored by Resistances 236 | . 118 . . 118 Core Remaining (%) 100 | 100 . . . . Volleys Fired 58 | 3 44 . . 11 Largest 2 | 2 2 . . 1 Hottest 85 | 60 85 . . 33 Shots Fired 96 | 6 78 1 . 11 Gun 78 | 6 71 1 . . Cannon 7 | . 7 . . . Launcher 11 | . . . . 11 Special . | . . . . . Kinetic 41 | 3 38 . . . Thermal 44 | 3 40 1 . . Explosive 11 | . . . . 11 Electromagnetic . | . . . . . Robot Hit Streak 13 | 2 13 . . 5 Robot Miss Streak 3 | 1 3 . . 1 Penetration Max . | . . . . . Secondary Targets 2 | . 2 . . . Max Gunslinging Chain 1 | . 1 . . . Shots Hit Robots 68 | 3 56 . . 9 Core Hits 53 | 2 24 . . 27 Critical Kills . | . . . . . Critical Parts Destroyed . | . . . . . Critical Strikes 6 | . 6 . . . Burn 5 | . 5 . . . Blast 1 | . 1 . . . Melee Attacks 2 | . . . . 2 Impact . | . . . . . Slashing 2 | . . . . 2 Piercing . | . . . . . Sneak Attacks . | . . . . . Combat Hostiles . | . . . . . Follow-up Attacks . | . . . . . Damage Inflicted 2443 | 67 770 . . 1606 Guns 734 | 67 667 . . . Cannons 103 | . 103 . . . Explosions 1501 | . . . . 1501 Melee 105 | . . . . 105 Ramming . | . . . . . Kinetic 488 | 33 455 . . . Thermal 349 | 34 315 . . . Explosive 1501 | . . . . 1501 Electromagnetic . | . . . . . Impact . | . . . . . Slashing 105 | . . . . 105 Piercing . | . . . . . Highest Corruption 1 | . 1 1 1 1 Average Corruption 1 | . 1 1 1 1 Corruption Purged . | . . . . . Corruption Blocked . | . . . . . Effects 7 | . 2 2 2 1 Message Errors 2 | . 2 . . . Heat Flow Errors 1 | . . . 1 . Energy Discharges 1 | . . . . 1 Data Loss (minor) 1 | . . 1 . . Misfires 1 | . . 1 . . Alerts 1 | . . . 1 . Overload Shots . | . . . . . Overflow Damage 81 | . 1 . . 80 Projectiles 1 | . 1 . . . Explosions 37 | . . . . 37 Melee 43 | . . . . 43 Knockbacks 2 | . 2 . . . Impact . | . . . . . Kinetic 2 | . 2 . . . Secondary . | . . . . . Self-Inflicted Damage 16 | . . . . 16 Shots 1 | . . . . 1 Rammed . | . . . . . Targets Rammed . | . . . . . Kicked . | . . . . . Crushed . | . . . . . Highest Temperature 166 | . 166 10 101 . Average Temperature 49 | . 49 7 51 . Received Heat Transfer 219 | . 219 . . . Siege Activations . | . . . . . Robots Corrupted . | . . . . . Combat Hostiles . | . . . . . Parts Fried . | . . . . . Impact Corruptions . | . . . . . Robots Melted . | . . . . . Combat Hostiles . | . . . . . Parts Melted 3 | . 3 . . . Heat Transferred 1370 | 75 1295 . . . Parts Sabotaged . | . . . . . Parts Stolen . | . . . . . Parts Stripped . | . . . . . Power Chain Reactions . | . . . . . Alert | -11 -10 -10 -10 -9 ------- Run | Yrd Mat Min Exi Min Peak Influence 182 | 5 182 7 . 105 Initial 7 | . 2 7 . . Average 56 | 1 74 7 . 29 Maximum Alert Level . | . . . . . Low Security (%) 100 | 100 100 100 . 100 Level 1 . | . . . . . Level 2 . | . . . . . Level 3 . | . . . . . Level 4 . | . . . . . Level 5 . | . . . . . High Security . | . . . . . Max Security . | . . . . . Squads Dispatched 1 | . 1 . . . Investigation 1 | . 1 . . . Extermination . | . . . . . Reinforcement . | . . . . . Assault . | . . . . . Garrison . | . . . . . Intercept . | . . . . . Searches Triggered . | . . . . . Construction Impeded . | . . . . . Haulers Reinforced . | . . . . . Active Scanning Responses . | . . . . . Cargo Convoy Interrupts . | . . . . . Stealth | -11 -10 -10 -10 -9 --------- Run | Yrd Mat Min Exi Min Distress Signals . | . . . . . Communications Jammed . | . . . . . Distress Signals . | . . . . . Times Spotted 39 | . 13 . . 26 Peak Tracking Total 15 | . 4 . . 15 Tactical Retreats . | . . . . . Traps | -11 -10 -10 -10 -9 ------- Run | Yrd Mat Min Exi Min Traps Triggered 2 | . 2 . . . Indirectly . | . . . . . Trap Hack Attempts . | . . . . . Triggered . | . . . . . Disarmed 5 | . 5 . . . Reprogrammed . | . . . . . Reused . | . . . . . Traps Extracted . | . . . . . Installed . | . . . . . Triggered . | . . . . . Machines | -11 -10 -10 -10 -9 ---------- Run | Yrd Mat Min Exi Min Machines Disabled . | . . . . . Max in Single Turn . | . . . . . Machines Repaired . | . . . . . Machines Dismantled . | . . . . . Machines Sabotaged . | . . . . . Overloaded Fab Kills . | . . . . . Hacking | -11 -10 -10 -10 -9 --------- Run | Yrd Mat Min Exi Min Machines Accessed 10 | . 6 . 4 . Terminals 6 | . 6 . . . Fabricators . | . . . . . Repair Stations . | . . . . . Recycling Units . | . . . . . Scanalyzers . | . . . . . Garrison Access . | . . . . . Total Hacks 69 | . 20 . 49 . Successful 59 | . 10 . 49 . Failed 10 | . 10 . . . Catastrophic 3 | . 3 . . . Database Lockouts . | . . . . . Manual 20 | . 19 . 1 . Terminals 20 | . 20 . . . Fabricators . | . . . . . Repair Stations . | . . . . . Recycling Units . | . . . . . Scanalyzers . | . . . . . Garrison Access . | . . . . . Terminal Hacks 59 | . 10 . 49 . Record 49 | . . . 49 . Part Schematic 3 | . 3 . . . Robot Analysis 3 | . 3 . . . Branch Access Points 1 | . 1 . . . Terminal Index 1 | . 1 . . . Unreport Threat 1 | . 1 . . . Disarm Traps 1 | . 1 . . . Fabricator Hacks . | . . . . . Repair Station Hacks . | . . . . . Recycling Unit Hacks . | . . . . . Scanalyzer . | . . . . . Garrison Access Hacks . | . . . . . Unauthorized Hacks . | . . . . . Terminals . | . . . . . Fabricators . | . . . . . Repair Stations . | . . . . . Recycling Units . | . . . . . Scanalyzers . | . . . . . Garrison Access . | . . . . . Data Cores Recovered . | . . . . . Used . | . . . . . Hacking Detections 5 | . 5 . . . Full Trace Events 2 | . 2 . . . Feedback Events . | . . . . . Feedback Blocked . | . . . . . Robot Schematics Acquired . | . . . . . Robots Built . | . . . . . Authchips . | . . . . . Time . | . . . . . Total Robot Build Rating . | . . . . . Part Schematics Acquired 3 | . 3 . . . Parts Built . | . . . . . Authchips . | . . . . . Time . | . . . . . Total Part Build Rating . | . . . . . Parts Repaired . | . . . . . Time . | . . . . . Parts Recycled . | . . . . . Recycled Matter . | . . . . . Retrieved Matter . | . . . . . Retrieved Components . | . . . . . Parts Scanalyzed . | . . . . . Part Schematics Acquired . | . . . . . Parts Damaged . | . . . . . Bothacking | -11 -10 -10 -10 -9 ------------ Run | Yrd Mat Min Exi Min Used RIF Installer . | . . . . . Robots Hacked . | . . . . . Non-combat . | . . . . . Combat . | . . . . . Robot Hacks Applied . | . . . . . Relay Couplers Released . | . . . . . Fabnet Peak Effective % . | . . . . . Robots Rewired . | . . . . . Allies Hacked . | . . . . . Hacks Repelled . | . . . . . Allies | -11 -10 -10 -10 -9 -------- Run | Yrd Mat Min Exi Min Total Allies 3 | . . 3 . . Largest Group 3 | . . 3 3 2 Highest-Rated Group 40 | . . 40 40 32 Highest-Rated Ally 16 | . . 16 16 16 Total Orders . | . . . . . Ally Attacks 19 | . . . . 19 Total Damage 224 | . . . . 224 Kills 5 | . . . . 5 Allies Corrupted . | . . . . . Allies Melted . | . . . . . Intel | -11 -10 -10 -10 -9 ------- Run | Yrd Mat Min Exi Min Robot Analysis Total 3 | . 3 . . . Derelict Logs Recovered . | . . . . . Drone Launches . | . . . . . Drone Recoveries . | . . . . . Exploration | -11 -10 -10 -10 -9 ------------- Run | Yrd Mat Min Exi Min Turns Passed 1709 | 90 778 131 620 90 Spaces Moved 1411 | 73 556 122 603 57 Core 13 | 13 . . . . Treads . | . . . . . Legs . | . . . . . Wheels 1398 | 60 556 122 603 57 Hover . | . . . . . Flight . | . . . . . Fastest Speed 50 | 50 100 100 100 100 Average Speed 99 | 91 100 100 100 102 Slowest Speed 115 | 100 100 100 100 115 Overloaded Moves . | . . . . . Propulsion Burnouts . | . . . . . Robots Hopped . | . . . . . Cave-ins Triggered . | . . . . . Exploration Rate (%) 47 | 5 85 39 92 15 Regions Visited 4 Branch Regions 3 Pre-discovered Areas 1 | . . . 1 . Known Exits Taken 3 | . 1 1 1 . Unknown Exits Taken 1 | 1 . . . . Scrap Searched 1 | . . . . 1 Spaces Dug . | . . . . . Terrain Destroyed 104 | . . . . 104 Melee . | . . . . . Projectile . | . . . . . AOE 104 | . . . . 104 Terrain Rammed . | . . . . . Walls Destroyed . | . . . . . Machines Disabled . | . . . . . Actions | -11 -10 -10 -10 -9 --------- Run | Yrd Mat Min Exi Min Total 1616 | 88 703 131 619 75 Wait 91 | . 65 9 15 2 Move 1407 | 72 555 121 602 57 Hop . | . . . . . Pick Up 25 | 6 16 1 1 1 Fast Attach 6 | 5 1 . . . Attach 9 | 1 7 . . 1 Detach . | . . . . . Swap 6 | . 4 . 1 1 Drop 12 | 1 11 . . . Fire 58 | 3 44 . . 11 Melee 2 | . . . . 2 Ram . | . . . . . Kick . | . . . . . Crush . | . . . . . Escape Stasis . | . . . . . Rewire . | . . . . . Trap . | . . . . . Miscellaneous . | . . . . . Route ------- -11/Scrapyard -10/Materials (discovered 4 exits: *Mat x3 / *Min) -10/Mines -10/Exiles (discovered 2 exits: *Min x2) -9/Mines History --------- Turn | Location | Event 8 | -11/Scrapyard | Discovered new exit (range 15) 91 | -11/Scrapyard | Entered Materials 147 | -10/Materials | Discovered new exit (range 14) 186 | -10/Materials | Discovered new exit (range 12) 317 | -10/Materials | Build established: Mutant 349 | -10/Materials | Identified exit to Materials 395 | -10/Materials | Identified exit to Mines 484 | -10/Materials | Discovered exit to Materials (range 13) 638 | -10/Materials | Discovered exit to Materials (range 10) 869 | -10/Materials | Entered Mines 872 | -10/Mines | Assisted by bots powering up and referring to "LRC-V3" 908 | -10/Mines | Received a Rocket Launcher from a helpful Derelict 991 | -10/Mines | Deemed a non-threat by the Exiles lab entrance 992 | -10/Mines | Discovered new exit (range 5) 995 | -10/Mines | Identified exit to Exiles 1000 | -10/Mines | Entered Exiles 1000 | -10/Exiles | Accompanied by 3 allies 1015 | -10/Exiles | Discovered new exit (range 15) 1026 | -10/Exiles | Met 8R-AWN 1045 | -10/Exiles | Met EX-HEX 1089 | -10/Exiles | Met EX-DEC 1115 | -10/Exiles | Learned location of Zion (-7) 1147 | -10/Exiles | Discovered new exit (range 14) 1157 | -10/Exiles | Identified exit to Mines 1228 | -10/Exiles | Met EX-BIN 1242 | -10/Exiles | Aligned with FarCom system 1243 | -10/Exiles | Given EX-Vault access code 1295 | -10/Exiles | Opened EX-Vault 1302 | -10/Exiles | Found Prototype Slashing Weapon 1303 | -10/Exiles | Identified Longsword +1 1327 | -10/Exiles | Warned to stay clear of 0b10 Research branches 1394 | -10/Exiles | Visited The Gauntlet 1620 | -10/Exiles | Left Exiles lab with Longsword +1 1620 | -10/Exiles | Entered Mines 1620 | -9/Mines | Accompanied by 3 allies 1621 | -9/Mines | Assembled infested the area 1640 | -9/Mines | Met a Derelict bent on vengeance 1685 | -9/Mines | Destroyed 14 combat bots 1702 | -9/Mines | Core integrity fell below 50% 1707 | -9/Mines | Core integrity fell below 20% 1710 | -9/Mines | Destroyed by D-53 Grenadier with Mini Grenade Launcher Last Messages --------------- 01677_ R-06 Scavenger collects Heat Sink. 01678_ System corrupted: Energy discharge (-57). 01680_ The unstable cave ceiling collapses. 01681_ R-06 Scavenger collects Aluminum Leg. 01691_ S-10 Pest destroyed. 01691_ Destroyed Flight Unit. 01691_ S-10 Pest destroyed. 01698_ C-30 ARC bursts open, deploying its payload. 01698_ D-53 Grenadier unfolds itself. 01698_ Com. Wheel destroyed. 01698_ S-10 Pest destroyed. 01698_ Rocket Launcher destroyed. 01698_ Destroyed Rocket Launcher. 01699_ Trooper 1b destroyed. 01699_ R-06 Scavenger destroyed. 01700_ Ion Engine destroyed. 01702_ The unstable cave ceiling collapses. 01705_ Com. Wheel destroyed. 01707_ The unstable cave ceiling collapses. Map ----- +----------------------------------------------------+ | ?????????????????????????????????????????????????? | | ?????????????????????????????????????????????????? | | ?????????????????????????????????????????????????? | | ?????????????????????????????????????????????????? | | ?????????????????????????????????????????????????? | | ?????????????????????????????????? ??????????????? | | ????????????????????????????????? # ????????????? | | ???????????????????????????????? ???????????? | | ???????????????????????????????? ???????????? | | ???????????????????????????????" ??????????? | | ??????????????????????????????#%" ??????????? | | ?????????????????????????????# " ?????????? | | ???????????????????????###### ?????????? | | ??????????????????????## ?????????? | | ??????????????????????# [ ????????? | | ??????????????????????# ????????? | | ??????????????????????# dd ???????? | | ?????????????????????## =%* ???????? | | ??????????????????#### #????????????? | | ??????????????????# ! ## #????????????? | | ?????????????????#### # ###????????????????? | | ???????????????### #?????????????????? | | ??????????????## #?????????????????? | | ????? # ## #?????????????????? | | ????????# # #?????????????????? | | ???????# % %= @ ##????????????????? | | ????????# ! ## #????????????????? | | ????????### # " #????????????????? | | ????????????# # #????????????????? | | ????????????# ### #????????????????? | | ????????????#############?#= ! #????????????????? | | ??????????????????????????## [ ##????????????????? | | ???????????????????????????#####?????????????????? | | ?????????????????????????????????????????????????? | | ?????????????????????????????????????????????????? | | ?????????????????????????????????????????????????? | | | | | | | | | | | | | | | | | | | | | | | | | | | | | +----------------------------------------------------+ Best States ------------- Heat Dissipation 25 Energy Generation 10 Energy Capacity 250 Matter Stores 300 Matter Capacity 300 Sight Range 16 Terrain Scan Density 10 Resistance: KI 20 Resistance: TH 20 Resistance: EX 20 Resistance: EM 20 Resistance: I 20 Resistance: S 20 Resistance: P 20 Evasion (%) 50 Offensive Hacking 10 Item Schematics ----------------- Com. Wheel | -10/Materials | Hacked Grenade Launcher | -10/Materials | Hacked Hcp. Storage Unit | -10/Materials | Hacked Robot Schematics ------------------ None Fabricated ------------ Nothing Alien Tech Used ----------------- None Achievements -------------- Armchair Analyst Challenges ------------ None Game ------ Seed AssemblyDecoyPick Manual? 0 Play Time 00:37:37 Cumulative 19.3 hours Start 2024.06.22 @ 04:19:30 End 2024.06.22 @ 04:57:13 Sessions 1 Manual Loads 0 Difficulty Adventurer Special Mode None Game No. 6 Rogue 0 Adventurer 6 Explorer 0 Win Type - Total 0 Types 0/0/0/0/0/0/0/0/0 Lore% 18 Gallery% 26 Achievement% 28 Wizard Run 0 Options --------- Layout 1 ASCII 0 Keyboard 0 Movement Numpad Keybinds 0 Fullscreen 1 Font 48/Smallcaps Map View 50x35 Zoom Use 0% Tactical HUD 1 Map Filters NONE Filters NONE Steam 1 RUN: b2d2b062-48ce-4713-85d4-03903b6cacfc